Cogmind - Beta 16 @@@ ROGUE MODE // 2025.11.04 @ 22:58:46 Player: Naughtyusername Result: Core destroyed Performance ------------- Evolutions (4) 2000 Regions Visited (11) 2200 Robots Destroyed (156) 780 Value Destroyed (5051) 5051 Prototype IDs (39) 780 Alien Tech Used (0) 0 Bonus (1190) 1190 TOTAL SCORE: 12001 Bonus ------- High Alert Combat Kills 231 Follower Combat Kills 418 Registered with UFD 300 Met Optimus in HQ 500 Friendly Fire -259 Cogmind --------- Core Integrity 0/850 Matter 300/300 Energy 100/100 System Corruption 21% Temperature Cool (0) Movement Core (50) Location -6/Factory Parts ------- > --- POWER (2) -------- (None) > --- PROPULSION (5) --- (None) > --- UTILITY (6) ------ (None) > --- WEAPON (2) ------- (None) > --- INVENTORY (5) ---- High-powered Tractor Beam Tiamat Missile Launcher Plasma Cutter CPS Tube (2) Force Lance Peak State ------------ > --- POWER ------------ Micro Nuclear Core Light Angular Momentum Engine > --- PROPULSION ------- Flexi-carbon Leg Flexi-carbon Leg Flexi-carbon Leg Armored Leg Armored Leg > --- UTILITY ---------- Large Storage Unit IFF Parser Salvage Targeting Computer Improved Targeting Computer Core Analyzer Hardened Medium Armor Plating > --- WEAPON ----------- Hypervelocity Gauss Rifle Hypervelocity Gauss Rifle > --- INVENTORY -------- Cooled Gravmag System Core Shielding A0-MCA's Component Scanner High-powered Shock Rifle High-powered Shock Rifle Gatling Laser Improved EM Pulse Cannon Enhanced Autogun Enhanced Autogun Heavy Rocket Launcher Remote Datajack Plasma Cutter CPS Tube CPS Tube Katana [Rating: 67] Favorites ----------- Power Heavy Ion Engine Engine Heavy Ion Engine Power Core Light Nuclear Core Propulsion Titanium Leg Treads Light Treads Leg Titanium Leg Wheel Compact Wheel Hover Unit Cooled Gravmag System Flight Unit Biomechanical Wings Utility Improved Heat Sink Device Improved Heat Sink Storage Large Storage Unit Processor Salvage Targeting Computer Protection Hardened Medium Armor Plating Weapon Enhanced Autogun Energy Gun Small Laser Energy Cannon Advanced Beam Cannon Ballistic Gun Enhanced Autogun Ballistic Cannon Mini Assault Cannon Launcher Advanced EMP Blaster Special Weapon Remote Datajack Impact Weapon Heavy Hammer Slashing Weapon Katana Piercing Weapon Force Lance Special Melee Weapon Datajack Build | -11 -10 -10 -10 -9 -8 -8 -8 -8 -6 -6 -6 ------- Run | Yrd Mat Min Exi Min Mat Sto Rec Scr Fac Was Fac Slots Evolved 8 | . . . . . 4 . . . 4 . . Power 1 | . . . . . . . . . 1 . . Propulsion 3 | . . . . . 2 . . . 1 . . Utility 4 | . . . . . 2 . . . 2 . . Weapon . | . . . . . . . . . . . . Parts Attached 132 | 7 11 6 . 5 21 26 1 1 33 2 19 Power 16 | 1 2 1 . . 1 2 . . 6 . 3 Engine 12 | 1 1 1 . . 1 2 . . 3 . 3 Core 4 | . 1 . . . . . . . 3 . . Reactor . | . . . . . . . . . . . . Propulsion 51 | 2 2 1 . 3 9 16 . . 9 . 9 Treads 2 | 2 . . . . . . . . . . . Leg 38 | . 2 1 . 3 8 15 . . 6 . 3 Wheel 6 | . . . . . . . . . . . 6 Hover 3 | . . . . . . 1 . . 2 . . Flight 2 | . . . . . 1 . . . 1 . . Utility 28 | 2 4 1 . 1 5 . . 1 8 . 6 Device 13 | 1 1 1 . . 1 . . 1 3 . 5 Storage 4 | 1 1 . . . 1 . . . . . 1 Processor 4 | . . . . 1 1 . . . 2 . . Hackware . | . . . . . . . . . . . . Protection 7 | . 2 . . . 2 . . . 3 . . Artifact . | . . . . . . . . . . . . Weapon 37 | 2 3 3 . 1 6 8 1 . 10 2 1 Energy Gun 10 | . 1 2 . . 1 4 . . 2 . . Energy Cannon 3 | . . . . . 2 . . . 1 . . Ballistic Gun 11 | 2 . . . 1 1 2 . . 4 . 1 Ballistic Cannon 1 | . . . . . . . . . 1 . . Launcher 5 | . 1 1 . . . 1 . . 1 1 . Special Weapon 2 | . . . . . . . 1 . 1 . . Impact Weapon 2 | . 1 . . . 1 . . . . . . Slashing Weapon 1 | . . . . . 1 . . . . . . Piercing Weapon 1 | . . . . . . . . . . 1 . Special Melee Weapon 1 | . . . . . . 1 . . . . . Unidentified Prototypes 14 | . . . . . 4 5 . . 4 1 . Parts Lost 42 | . 6 2 . 3 5 1 . . 17 . 8 Power 9 | . 2 . . . 1 . . . 5 . 1 Propulsion 14 | . 1 . . 1 3 . . . 5 . 4 Utility 9 | . 2 . . . . . . . 5 . 2 Weapon 10 | . 1 2 . 2 1 1 . . 2 . 1 Highest Loss Streak 5 | . 3 1 . 2 4 1 . . 5 . 3 To Critical Strikes . | . . . . . . . . . . . . Average Backups 11 | . 6 8 9 8 12 14 15 14 13 5 5 Power . | . 1 1 1 1 1 . . . . . . Propulsion 1 | . . . . . . 3 5 2 . . . Utility 2 | . 2 3 4 4 4 3 3 3 1 1 1 Weapon 4 | . 2 3 4 3 5 6 6 6 7 2 2 Tool/Special . | . . . . . . . . . . . . Unused Backups 21 | . 2 2 . 1 2 6 . 1 6 . 1 Power 3 | . . 1 . . . 2 . . . . . Propulsion . | . . . . . . . . . . . . Utility 8 | . 1 1 . . 2 2 . . 2 . . Weapon 8 | . 1 . . 1 . 2 . 1 3 . . Tool/Special 2 | . . . . . . . . . 1 . 1 Average Slot Usage (%) 93 | . 95 99 100 99 97 99 100 100 84 1 58 Engine 9 | . 7 14 14 14 8 9 9 9 6 . 8 Treads 2 | . 18 . . . . . . . . . . Leg 27 | . 8 28 28 27 34 35 36 36 27 . 3 Device 9 | . 7 14 14 8 8 9 9 9 5 . 14 Storage 9 | . 14 14 14 14 9 9 9 9 5 . 3 Processor 10 | . . . . 5 13 18 18 18 16 . . Protection 2 | . 5 . . . 4 . . . 6 . . Energy Gun 7 | . 2 25 28 26 7 4 . . 3 . . Energy Cannon 1 | . . . . . 8 5 . . . . 1 Ballistic Gun 7 | . 22 . . . 1 7 16 . 6 . 2 Special Weapon 1 | . . . . . . . . 9 . . . Slashing Weapon 1 | . . . . . . . . 9 . . . Peak Build Rating 67 | 7 10 16 16 16 34 39 36 35 67 9 45 Average Rating 27 | 5 7 14 16 15 30 34 35 34 48 3 28 On Entrance 17 | . 7 9 16 16 15 27 35 35 35 6 9 Avg Prop Armor Cover (%) 13 | . 8 . . . . . . . 13 . 13 Naked Turns 211 | . . . . . . . . . 94 110 7 Heaviest Build 56 | 13 22 26 24 25 39 40 35 34 56 9 42 Greatest Support 104 | 40 40 20 20 20 55 68 68 68 104 3 80 Greatest Overweight (x) 4 | 2 1 1 1 2 1 . . . 2 2 4 Average Overweight (x) . | . . . 1 . . . . . . . . Largest Inventory Capacity 15 | 8 10 10 10 10 15 15 15 15 15 5 10 Average Capacity 12 | 7 9 10 10 10 13 15 15 15 14 5 7 Most Carried 15 | 1 10 10 10 10 15 15 15 15 15 5 5 Average Carried 11 | . 7 9 10 9 13 14 15 14 13 4 4 Final Capacity 15 | 8 10 10 10 10 15 15 15 15 5 5 5 Final Carried 15 | 1 10 10 10 10 15 15 15 15 5 5 5 Class Distribution -------------------- 45% | Mutant 27% | Commander-Mutant 26% | Scavenger-Mutant Dominant Class ---------------- Mutant | -10/Materials Scavenger-Mutant | -10/Mines Scavenger-Mutant | -10/Exiles Scavenger-Mutant | -9/Mines Mutant | -8/Materials Mutant | -8/Storage Commander-Mutant | -8/Recycling Commander-Mutant | -8/Scraptown Mutant | -6/Factory Mutant | -6/Waste Scavenger-Mutant | -6/Factory Resources | -11 -10 -10 -10 -9 -8 -8 -8 -8 -6 -6 -6 ----------- Run | Yrd Mat Min Exi Min Mat Sto Rec Scr Fac Was Fac Matter Collected 3745 | 308 508 187 . 27 327 506 226 48 1215 . 393 Remotely 345 | . . . . . . . . . 150 . 195 Salvage Created 7799 | 182 602 323 . 133 1498 1606 754 . 1925 . 776 Parts 363 | 15 27 13 . 9 85 63 40 . 85 . 26 Haulers Intercepted 13 | . 1 . . . 5 4 . . 3 . . Recyclers Shooed 4 | . 1 . . . . . . . 3 . . Parts Field Recycled . | . . . . . . . . . . . . Retrieved Matter . | . . . . . . . . . . . . Parts Self-Destructed . | . . . . . . . . . . . . Prevented . | . . . . . . . . . . . . Parts Restored . | . . . . . . . . . . . . Kills | -11 -10 -10 -10 -9 -8 -8 -8 -8 -6 -6 -6 ------- Run | Yrd Mat Min Exi Min Mat Sto Rec Scr Fac Was Fac Combat Hostiles Destroyed 105 | . 14 7 . 5 25 21 7 . 20 . 6 Melee 3 | . . . . . 1 . . . . . 2 Guns 55 | . 11 5 . 5 4 7 7 . 14 . 2 Cannons 32 | . . . . . 18 12 . . . . 2 AOE 11 | . 3 2 . . 2 . . . 4 . . Classes Destroyed 13 | 2 7 . . . 2 . 2 . . . . Worker 6 | . 1 . . . 3 1 . . 1 . . Builder 4 | . 2 . . . . . . . 2 . . Tunneler 6 | 4 . . . 1 . . . . . . 1 Hauler 13 | . 1 . . . 5 4 . . 3 . . Recycler 11 | 1 . . . . . 1 4 . 2 . 3 Watcher 7 | . 2 . . . 3 . . . 2 . . Swarmer 12 | . 3 . . 3 6 . . . . . . Grunt 49 | . 9 7 . 2 9 10 . . 9 . 3 Duelist 3 | . . . . . . . 1 . 1 . 1 Sentry 29 | . . . . . 9 11 5 . 3 . 1 Hunter 9 | . . . . . 1 2 . . 6 . . Programmer 3 | . . . . . . . 1 . 1 . 1 Subdweller 2 | . 2 . . . . . . . . . . Thug 1 | . . 1 . . . . . . . . . Best Kill Streak 9 | 3 6 3 . 3 9 7 4 . 7 . 2 Combat Bots Only 7 | . 3 3 . 3 4 7 4 . 5 . 2 Max Kills in Single Turn 2 | 1 2 2 . 1 2 2 1 . 2 . 1 Gunslinging . | . . . . . . . . . . . . Exploded 2 | . 2 2 . . 2 . . . 2 . . Melee 1 | . . . . . 1 . . . . . 1 Uniques/NPCs Destroyed 1 | . . . . . . 1 . . . . . 01-MTF (-8/Storage) Combat | -11 -10 -10 -10 -9 -8 -8 -8 -8 -6 -6 -6 -------- Run | Yrd Mat Min Exi Min Mat Sto Rec Scr Fac Was Fac Hostile Shots Fired 706 | . 82 29 . 36 117 54 8 . 319 . 61 Missed 200 | . 13 11 . 10 37 13 2 . 96 . 18 Hits 506 | . 69 18 . 26 80 41 6 . 223 . 43 Melee 19 | . . . . 1 . . . . 15 . 3 Projectile 487 | . 69 18 . 25 80 41 6 . 208 . 40 AOE 5 | . . . . 5 . . . . . . . Critical Strikes 19 | . 1 . . . 3 1 . . 7 . 7 Damage Taken 8051 | . 882 249 . 502 1094 710 89 . 3447 . 1078 Core 1386 | . 121 14 . 77 153 139 30 . 523 . 329 Absorbed by Shields . | . . . . . . . . . . . . Redirected to Shielding 36 | . . . . . . . . . 36 . . Ignored by Resistances 9 | . . . . . . . . . . . 9 Core Remaining (%) 52 | 100 . . . 15 . . . 41 . . . Volleys Fired 416 | 8 67 23 . 13 82 67 26 5 106 . 19 Largest 2 | 2 2 2 . 2 2 2 2 1 2 . 2 Hottest 136 | 40 60 105 . 105 136 136 50 5 120 . 65 Shots Fired 789 | 16 127 40 . 27 163 132 49 5 195 . 35 Gun 586 | 16 123 38 . 27 77 52 45 . 191 . 17 Cannon 180 | . . . . . 85 77 . . . . 18 Launcher 13 | . 4 2 . . 1 3 . . 3 . . Special 10 | . . . . . . . 4 5 1 . . Kinetic 346 | 16 103 5 . . 4 7 45 . 149 . 17 Thermal 378 | . 20 33 . 27 158 122 . . . . 18 Explosive 10 | . 4 2 . . 1 . . . 3 . . Electromagnetic 45 | . . . . . . 3 . . 42 . . Robot Hit Streak 25 | 5 8 7 . 8 12 25 21 6 14 . 8 Robot Miss Streak 5 | 2 3 2 . 2 5 2 2 . 3 . 5 Penetration Max 2 | . . . . . . . . . 2 . . Secondary Targets 3 | . . . . . . 1 . . 2 . . Max Gunslinging Chain 1 | . . . . . . 1 . . 1 . . Shots Hit Robots 550 | 8 78 26 . 15 102 92 61 4 137 . 27 Core Hits 266 | 5 35 17 . 7 49 44 18 . 77 . 14 Critical Kills 9 | . . . . . . 1 . . 8 . . Critical Parts Destroyed 11 | . . . . . . . . . 11 . . Critical Strikes 31 | . . . . 1 7 2 . . 19 . 2 Burn 9 | . . . . 1 7 1 . . . . . Meltdown 1 | . . . . . . 1 . . . . . Destroy 19 | . . . . . . . . . 19 . . Impale 2 | . . . . . . . . . . . 2 Melee Attacks 63 | . 3 1 . . 6 5 22 . 12 . 14 Impact 4 | . 3 1 . . . . . . . . . Slashing 21 | . . . . . 6 3 . . 12 . . Piercing 14 | . . . . . . . . . . . 14 Sneak Attacks 30 | . 2 1 . . . 2 22 . . . 3 Combat Hostiles . | . . . . . . . . . . . . Follow-up Attacks . | . . . . . . . . . . . . Damage Inflicted 11018 | 101 1378 545 . 221 2239 1863 778 . 2673 . 1220 Guns 6302 | 101 936 320 . 220 1013 578 724 . 2142 . 268 Cannons 2516 | . . . . . 1060 1140 . . . . 316 Explosions 1277 | . 292 166 . . 131 129 . . 498 . 61 Melee 761 | . 150 43 . . 29 . . . . . 539 Ramming 162 | . . 16 . 1 6 16 54 . 33 . 36 Kinetic 3691 | 101 847 62 . . 41 58 724 . 1590 . 268 Thermal 4575 | . 89 258 . 220 2032 1660 . . . . 316 Explosive 1033 | . 235 166 . . 131 . . . 440 . 61 Electromagnetic 796 | . 57 . . . . 129 . . 610 . . Impact 193 | . 150 43 . . . . . . . . . Slashing 29 | . . . . . 29 . . . . . . Piercing 539 | . . . . . . . . . . . 539 Highest Corruption 21 | . 2 2 2 2 . 2 2 . 2 21 21 Average Corruption 4 | . 2 2 2 2 . 2 2 . 2 13 21 Corruption Purged . | . . . . . . . . . . . . Corruption Blocked . | . . . . . . . . . . . . Effects 100 | . 11 16 1 11 . 8 14 . . 8 31 Message Errors 26 | . 3 3 . 3 . . 5 . . 3 9 Matter Fused 18 | . 4 5 . . . 3 3 . . . 3 Heat Flow Errors 11 | . 3 1 . 2 . 1 . . . 2 2 Energy Discharges 8 | . . 2 . 2 . . 1 . . . 3 Parts Rejected 1 | . . . . . . . . . . . 1 Parts Fused 2 | . . 1 . . . . 1 . . . . Data Loss (minor) 12 | . . 1 1 3 . 1 2 . . . 4 Data Loss (major) 9 | . 1 1 . . . 2 1 . . . 4 Misfires 4 | . . . . 1 . 1 1 . . . 1 Alerts 3 | . . 2 . . . . . . . . 1 Misdirections 3 | . . . . . . . . . . 3 . Weapon Failures 3 | . . . . . . . . . . . 3 Overload Shots . | . . . . . . . . . . . . Overflow Damage 551 | . 88 3 . . . . . . 7 . 453 Projectiles . | . . . . . . . . . . . . Explosions 143 | . 7 . . . . . . . 7 . 129 Melee 408 | . 81 3 . . . . . . . . 324 Knockbacks 2 | . 1 . . . . . . . 1 . . Impact 2 | . 1 . . . . . . . 1 . . Kinetic . | . . . . . . . . . . . . Secondary . | . . . . . . . . . . . . Self-Inflicted Damage 349 | . . . . . 29 . . . 11 . 309 Shots 4 | . . . . . 1 . . . . . 3 Rammed 6 | . . . . . . . . . 6 . . Targets Rammed 25 | . 2 4 . 1 1 4 5 . 8 . . Kicked 19 | . 2 4 . 1 1 4 5 . 2 . . Crushed . | . . . . . . . . . . . . Highest Temperature 321 | . 321 236 . 188 216 171 . . 269 251 205 Average Temperature 59 | . 77 37 . 43 52 42 . . 70 135 81 Received Heat Transfer 2085 | . 450 144 . 72 405 306 9 . 411 . 288 Effects 1 | . . . . . 1 . . . . . . Energy Bleed 1 | . . . . . 1 . . . . . . Siege Activations . | . . . . . . . . . . . . Martial Activations . | . . . . . . . . . . . . Shielding Activations . | . . . . . . . . . . . . Robots Disrupted . | . . . . . . . . . . . . Combat Hostiles . | . . . . . . . . . . . . Robots Corrupted 3 | . 1 . . . . . . . 2 . . Combat Hostiles 2 | . . . . . . . . . 2 . . Parts Fried 14 | . 2 . . . . 4 . . 8 . . Impact Corruptions 4 | . 3 1 . . . . . . . . . Robots Melted 2 | . . . . . . 2 . . . . . Combat Hostiles 2 | . . . . . . 2 . . . . . Parts Melted 21 | . 2 1 . 1 8 9 . . . . . Heat Transferred 9166 | . 200 584 . 569 4181 3182 . . . . 450 Parts Sabotaged . | . . . . . . . . . . . . Parts Stolen . | . . . . . . . . . . . . Parts Stripped . | . . . . . . . . . . . . Power Chain Reactions 2 | . . . . . . 1 . . 1 . . Alert | -11 -10 -10 -10 -9 -8 -8 -8 -8 -6 -6 -6 ------- Run | Yrd Mat Min Exi Min Mat Sto Rec Scr Fac Was Fac Maximum Alert Level 3 | . . . . . 2 3 1 . 2 . . Low Security (%) 71 | 100 100 100 . 100 72 16 54 . 63 100 100 Level 1 11 | . . . . . 13 10 45 . 18 . . Level 2 9 | . . . . . 13 32 . . 18 . . Level 3 6 | . . . . . . 40 . . . . . Level 4 . | . . . . . . . . . . . . Level 5 . | . . . . . . . . . . . . High Security . | . . . . . . . . . . . . Max Security . | . . . . . . . . . . . . Peak Influence 751 | 15 115 69 . 60 472 751 336 . 454 153 97 Initial 260 | . 3 14 . . . 197 260 . . 153 58 Average 169 | 1 35 8 . 6 155 570 205 . 153 118 17 Influence Increases 4641 | 25 479 177 . 125 930 1178 330 . 1102 . 295 Destroy 0b10 Robot/C 2260 | . 240 140 . 100 500 520 140 . 500 . 120 Destroy 0b10 Robot/NC 260 | 25 30 . . 5 55 50 25 . 50 . 20 Destroy Leader 656 | . 76 30 . 20 166 184 . . 150 . 30 Allied During Kill 293 | . . . . . . 227 18 . 48 . . Successful Hack 186 | . 16 . . . 77 39 27 . 27 . . Select Force Hacks 270 | . 60 . . . 30 60 120 . . . . Disable Machine 300 | . 15 . . . 30 90 . . 90 . 75 Destroy Structure 161 | . 12 7 . . 12 8 . . 87 . 35 Lose Combat Pursuer 255 | . 30 . . . 60 . . . 150 . 15 Influence Decreases 4544 | 20 446 215 . 125 462 978 910 88 664 355 281 Entered New Map 1103 | . 2 24 . . . 271 408 88 . 285 25 Time Decay 2835 | 20 394 171 . 125 412 577 502 . 364 70 200 Lost Part 356 | . 50 20 . . 50 10 . . 170 . 56 Lost Ally 250 | . . . . . . 120 . . 130 . . Squads Dispatched 26 | . 5 . . 1 4 4 . . 11 . 1 Investigation 10 | . 3 . . 1 2 2 . . 2 . . Extermination 4 | . . . . . . . . . 3 . 1 Reinforcement 10 | . 2 . . . 2 1 . . 5 . . Assault 1 | . . . . . . . . . 1 . . Garrison 1 | . . . . . . 1 . . . . . Intercept . | . . . . . . . . . . . . Searches Triggered . | . . . . . . . . . . . . Construction Impeded 1 | . . . . . . . . . 1 . . Haulers Reinforced 3 | . . . . . . . . . 3 . . Active Scanning Responses . | . . . . . . . . . . . . Cargo Convoy Interrupts . | . . . . . . . . . . . . Stealth | -11 -10 -10 -10 -9 -8 -8 -8 -8 -6 -6 -6 --------- Run | Yrd Mat Min Exi Min Mat Sto Rec Scr Fac Was Fac Distress Signals 7 | . 1 . . . 2 1 . . 2 . 1 Communications Jammed . | . . . . . . . . . . . . Distress Signals . | . . . . . . . . . . . . Times Spotted 200 | . 26 7 . 23 42 37 5 . 44 6 10 Peak Tracking Total 19 | . 4 3 . 19 7 5 2 . 6 6 3 Tactical Retreats 14 | . 2 . . 1 3 . . . 6 1 1 Traps | -11 -10 -10 -10 -9 -8 -8 -8 -8 -6 -6 -6 ------- Run | Yrd Mat Min Exi Min Mat Sto Rec Scr Fac Was Fac Traps Triggered 7 | . 2 . . . 2 1 . . 1 . 1 Indirectly . | . . . . . . . . . . . . Trap Hack Attempts . | . . . . . . . . . . . . Triggered . | . . . . . . . . . . . . Disarmed . | . . . . . . . . . . . . Reprogrammed . | . . . . . . . . . . . . Reused . | . . . . . . . . . . . . Traps Extracted . | . . . . . . . . . . . . Installed . | . . . . . . . . . . . . Triggered . | . . . . . . . . . . . . Machines | -11 -10 -10 -10 -9 -8 -8 -8 -8 -6 -6 -6 ---------- Run | Yrd Mat Min Exi Min Mat Sto Rec Scr Fac Was Fac Machines Disabled 20 | . 1 . . . 2 6 . . 6 . 5 Max in Single Turn 4 | . 1 . . . 1 1 . . 2 . 4 Garrison Access 3 | . . . . . 1 1 . . 1 . . Machines Repaired . | . . . . . . . . . . . . Machines Dismantled . | . . . . . . . . . . . . Machines Sabotaged . | . . . . . . . . . . . . Overloaded Fab Kills . | . . . . . . . . . . . . Hacking | -11 -10 -10 -10 -9 -8 -8 -8 -8 -6 -6 -6 --------- Run | Yrd Mat Min Exi Min Mat Sto Rec Scr Fac Was Fac Machines Accessed 59 | . 8 . 1 1 14 12 10 2 9 . 2 Terminals 36 | . 6 . . . 11 9 6 . 4 . . Fabricators 2 | . . . . . . . . . 2 . . Repair Stations 1 | . . . . . . . . . 1 . . Recycling Units 10 | . 2 . . . 1 2 4 . 1 . . Scanalyzers 2 | . . . . . 1 . . . . . 1 Garrison Access 4 | . . . . . 1 1 . . 1 . 1 Total Hacks 175 | . 25 . 2 1 60 33 23 4 25 . 2 Successful 92 | . 15 . 2 1 32 18 11 4 9 . . Failed 82 | . 9 . . . 28 15 12 . 16 . 2 Catastrophic 10 | . . . . . 2 3 1 . 3 . 1 Database Lockouts 1 | . 1 . . . . . . . . . . Manual 137 | . 25 . . . 53 25 22 . 12 . . Terminals 132 | . 22 . . . 54 29 17 . 10 . . Fabricators 6 | . . . . . . . . . 6 . . Repair Stations 5 | . . . . . . . . . 5 . . Recycling Units 16 | . 3 . . . 2 3 6 . 2 . . Scanalyzers 3 | . . . . . 2 . . . . . 1 Garrison Access 6 | . . . . . 2 1 . . 2 . 1 Terminal Hacks 33 | . 4 . 2 1 13 6 . 4 3 . . Record 5 | . . . 2 . . . . 3 . . . Part Schematic 2 | . . . . . . 2 . . . . . Robot Analysis 11 | . 3 . . . 8 . . . . . . Prototype ID Bank 5 | . . . . . 2 3 . . . . . Open Door 2 | . . . . 1 . 1 . . . . . Branch Access Points 1 | . . . . . 1 . . . . . . Terminal Index 3 | . 1 . . . 1 . . . 1 . . Alert Level 2 | . . . . . . . . . 2 . . Hauler Manifests 1 | . . . . . 1 . . . . . . Proto ID Catalog 1 | . . . . . . . . 1 . . . Fabricator Hacks 2 | . . . . . . . . . 2 . . Network Status 2 | . . . . . . . . . 2 . . Repair Station Hacks 1 | . . . . . . . . . 1 . . Refit 1 | . . . . . . . . . 1 . . Recycling Unit Hacks 2 | . 1 . . . 1 . . . . . . Retrieve Components 2 | . 1 . . . 1 . . . . . . Scanalyzer 2 | . . . . . 2 . . . . . . Retrieve Study 2 | . . . . . 2 . . . . . . Garrison Access Hacks 3 | . . . . . 1 1 . . 1 . . Seal Access 3 | . . . . . 1 1 . . 1 . . Unauthorized Hacks 49 | . 10 . . . 15 11 11 . 2 . . Terminals 39 | . 8 . . . 14 9 7 . 1 . . Track 4 | . . . . . 2 2 . . . . . Assimilate 1 | . . . . . . . . . 1 . . Botnet 9 | . 1 . . . 4 2 2 . . . . Disrupt 1 | . . . . . 1 . . . . . . Operators 3 | . 2 . . . 1 . . . . . . Skim 21 | . 5 . . . 6 5 5 . . . . Fabricators . | . . . . . . . . . . . . Repair Stations . | . . . . . . . . . . . . Recycling Units 10 | . 2 . . . 1 2 4 . 1 . . Tunnel 9 | . 2 . . . 1 2 4 . . . . Fedlink 1 | . . . . . . . . . 1 . . Scanalyzers . | . . . . . . . . . . . . Garrison Access . | . . . . . . . . . . . . Data Cores Recovered 1 | . . . . . . 1 . . . . . Used . | . . . . . . . . . . . . Hacking Detections 45 | . 6 . . . 13 10 6 . 8 . 2 Full Trace Events 1 | . . . . . . . . . 1 . . Feedback Events . | . . . . . . . . . . . . Feedback Blocked . | . . . . . . . . . . . . Robot Schematics Acquired . | . . . . . . . . . . . . Robots Built . | . . . . . . . . . . . . Authchips . | . . . . . . . . . . . . Time . | . . . . . . . . . . . . Total Robot Build Rating . | . . . . . . . . . . . . Part Schematics Acquired 2 | . . . . . . 2 . . . . . Parts Built . | . . . . . . . . . . . . Authchips . | . . . . . . . . . . . . Time . | . . . . . . . . . . . . Total Part Build Rating . | . . . . . . . . . . . . Part Studies Acquired 2 | . . . . . 2 . . . . . . Parts Repaired . | . . . . . . . . . . . . Time . | . . . . . . . . . . . . Parts Recycled . | . . . . . . . . . . . . Recycled Matter . | . . . . . . . . . . . . Retrieved Matter . | . . . . . . . . . . . . Retrieved Components 9 | . 7 . . . 2 . . . . . . Parts Scanalyzed . | . . . . . . . . . . . . Part Schematics Acquired . | . . . . . . . . . . . . Parts Damaged . | . . . . . . . . . . . . Bothacking | -11 -10 -10 -10 -9 -8 -8 -8 -8 -6 -6 -6 ------------ Run | Yrd Mat Min Exi Min Mat Sto Rec Scr Fac Was Fac Used RIF Installer . | . . . . . . . . . . . . Robots Hacked 8 | . . . . . . 2 2 4 . . . Non-combat 4 | . . . . . . 1 2 1 . . . Combat 4 | . . . . . . 1 . 3 . . . Robot Hacks Applied 8 | . . . . . . 2 2 4 . . . parse_system 8 | . . . . . . 2 2 4 . . . Relay Couplers Released . | . . . . . . . . . . . . Fabnet Peak Effective % . | . . . . . . . . . . . . Robots Rewired 11 | . . . . . . . 11 . . . . Allies Hacked . | . . . . . . . . . . . . Hacks Repelled . | . . . . . . . . . . . . Allies | -11 -10 -10 -10 -9 -8 -8 -8 -8 -6 -6 -6 -------- Run | Yrd Mat Min Exi Min Mat Sto Rec Scr Fac Was Fac Total Allies 23 | . . 1 . . . 10 11 . 1 . . Largest Group 11 | . . 1 . . . 10 11 11 11 . . Highest-Rated Group 173 | . . 31 . . . 173 150 150 150 . . Highest-Rated Ally 34 | . . 31 . . . 29 34 34 34 . . Total Orders 1 | . . . . . . 1 . . . . . STAY 1 | . . . . . . 1 . . . . . Ally Attacks 88 | . . 4 . . . 51 . . 33 . . Total Damage 1465 | . . 86 . . . 616 . . 763 . . Kills 16 | . . . . . . 10 . . 6 . . Allies Corrupted . | . . . . . . . . . . . . Allies Melted . | . . . . . . . . . . . . Intel | -11 -10 -10 -10 -9 -8 -8 -8 -8 -6 -6 -6 ------- Run | Yrd Mat Min Exi Min Mat Sto Rec Scr Fac Was Fac Active Infowar (turns) 1704 | 6 347 45 . . 167 . . . 1139 . . IFF 1010 | . . . . . . . . . 1010 . . Seismic 694 | 6 347 45 . . 167 . . . 129 . . Robot Analysis Total 11 | . 3 . . . 8 . . . . . . Derelict Logs Recovered 6 | . . 3 . 3 . . . . . . . Drone Launches . | . . . . . . . . . . . . Drone Recoveries . | . . . . . . . . . . . . Exploration | -11 -10 -10 -10 -9 -8 -8 -8 -8 -6 -6 -6 ------------- Run | Yrd Mat Min Exi Min Mat Sto Rec Scr Fac Was Fac Turns Passed 12528 | 109 1623 1224 240 1069 1337 1773 1344 1284 1721 154 650 Spaces Moved 7439 | 48 778 659 127 539 783 941 752 947 1171 234 460 Core 623 | 5 . . . . . . . . 289 234 95 Treads 545 | 43 502 . . . . . . . . . . Legs 5847 | . 276 659 127 539 783 941 752 947 822 . 1 Wheels 364 | . . . . . . . . . . . 364 Hover 60 | . . . . . . . . . 60 . . Flight . | . . . . . . . . . . . . Fastest Speed 50 | 50 120 120 190 120 108 90 130 130 50 50 50 Average Speed 133 | 155 158 171 190 188 119 124 130 130 108 59 108 Slowest Speed 260 | 160 240 190 190 260 190 130 130 130 200 150 250 Overloaded Moves . | . . . . . . . . . . . . Propulsion Burnouts . | . . . . . . . . . . . . Robots Hopped . | . . . . . . . . . . . . Potential Cave-ins 7 | . . . . . 3 . . . 4 . . Cave-ins Triggered . | . . . . . . . . . . . . Exploration Rate (%) 68 | 5 95 96 52 95 74 92 99 73 36 94 12 Regions Visited 11 Branch Regions 6 Pre-discovered Areas 22 | . 2 2 1 . 6 3 8 . . . . Known Exits Taken 3 | . . . . 1 1 . 1 . . . . Unknown Exits Taken 6 | 1 1 1 1 . . 1 . 1 . . . Scrap Searched 7 | . . 1 . 2 . . . 4 . . . Spaces Dug 19 | . 1 . . . 5 2 . . 11 . . Terrain Destroyed 184 | . 15 7 . . 13 6 . . 100 . 43 Melee 19 | . 1 . . . 5 2 . . 11 . . Projectile 7 | . . . . . . . . . . . 7 AOE 158 | . 14 7 . . 8 4 . . 89 . 36 Terrain Rammed 4 | . . . . . . . . . . . 4 Walls Destroyed . | . . . . . . . . . . . . Machines Disabled . | . . . . . . . . . . . . Actions | -11 -10 -10 -10 -9 -8 -8 -8 -8 -6 -6 -6 --------- Run | Yrd Mat Min Exi Min Mat Sto Rec Scr Fac Was Fac Total 9207 | 63 1035 710 126 570 1002 1408 1077 1000 1432 250 534 Wait 863 | . 145 . . 2 82 300 243 37 31 12 11 Move 7429 | 47 777 658 126 538 782 940 751 946 1171 233 460 Hop . | . . . . . . . . . . . . Pick Up 79 | 1 18 4 . 4 13 17 1 5 15 . 1 Fast Attach 59 | 7 3 1 . 2 5 6 . . 11 2 22 Attach 25 | . 5 1 . 2 4 3 . . 10 . . Detach 4 | . 2 . . . . . . . 1 1 . Swap 131 | . 6 11 . 2 22 36 4 1 48 . 1 Drop 86 | . 7 7 . 6 5 30 1 6 19 2 3 Fire 416 | 8 67 23 . 13 82 67 26 5 106 . 19 Melee 63 | . 3 1 . . 6 5 22 . 12 . 14 Ram 9 | . . . . . . . . . 6 . 3 Kick 19 | . 2 4 . 1 1 4 5 . 2 . . Crush . | . . . . . . . . . . . . Escape Stasis . | . . . . . . . . . . . . Rewire 24 | . . . . . . . 24 . . . . Trap . | . . . . . . . . . . . . Miscellaneous . | . . . . . . . . . . . . Route ------- -11/Scrapyard -10/Materials (discovered 5 exits: *Mat x3 / [*Min] / Sub) -10/Mines (discovered 3 exits: *Mat x2 / *Exi) -10/Exiles (discovered 2 exits: *Min x2) -9/Mines (discovered 2 exits: *Mat x2) -8/Materials (discovered 5 exits: *Fac x3 / *Sto x2) -8/Storage (discovered 2 exits: *Fac / *Rec) -8/Recycling (discovered 2 exits: *Fac / *Scr) -8/Scraptown (discovered 2 exits: *Fac x2) -6/Factory (discovered 2 exits: *Low x2) -6/Waste -6/Factory History --------- Turn | Location | Event 19 | -11/Scrapyard | Discovered new exit (range 16) 110 | -11/Scrapyard | Entered Materials 311 | -10/Materials | Build established: Mutant 384 | -10/Materials | Discovered new exit (range 14) 596 | -10/Materials | Discovered new exit (range 10) 610 | -10/Materials | Derelicts attacked the area 936 | -10/Materials | Discovered new exit (range 16) 1224 | -10/Materials | Lost 3 parts (1p1n1u) 1357 | -10/Materials | Identified exit to Materials 1404 | -10/Materials | Central database locked down 1451 | -10/Materials | Learned location of 1 exit from Recycling 1484 | -10/Materials | Identified exit to Subcaves 1733 | -10/Materials | Entered Mines 1799 | -10/Mines | Met a Derelict bent on vengeance 1953 | -10/Mines | Learned location of Recycling (-8) 2107 | -10/Mines | Build established: Scavenger-Mutant 2142 | -10/Mines | Deemed a non-threat by the Exiles lab entrance 2144 | -10/Mines | Discovered new exit (range 5) 2190 | -10/Mines | Escorted by a lone wolf Derelict 2335 | -10/Mines | Found a Scrap Suit stashed away for nefarious purposes 2339 | -10/Mines | Found Scrap Suit 2417 | -10/Mines | Core integrity fell below 50% 2546 | -10/Mines | Found a hidden stash of uninstalled traps 2623 | -10/Mines | Learned Materials terminal intel 2957 | -10/Mines | Entered Exiles 2988 | -10/Exiles | Discovered new exit (range 15) 3009 | -10/Exiles | Met 8R-AWN 3037 | -10/Exiles | Met EX-HEX 3089 | -10/Exiles | Met EX-BIN 3108 | -10/Exiles | Met EX-DEC 3127 | -10/Exiles | Learned location of Zion (-6) 3182 | -10/Exiles | Discovered new exit (range 10) 3197 | -10/Exiles | Entered Mines 3198 | -9/Mines | Identified exit to Materials 3204 | -9/Mines | Received a Rocket Launcher from a helpful Derelict 3606 | -9/Mines | Learned 2 Materials zone layouts 3785 | -9/Mines | Learned 2 Materials zone layouts 4004 | -9/Mines | Joined a pair of Derelicts in attacking an 0b10 outpost 4212 | -9/Mines | Assembled infested the area 4225 | -9/Mines | Core integrity fell below 20% 4237 | -9/Mines | Met a Derelict shopkeep closing up shop 4266 | -9/Mines | Entered Materials 4266 | -8/Materials | Evolved 4 slots: Propulsion x2, Utility x2 4267 | -8/Materials | Identified exit to Storage 4269 | -8/Materials | Loaded intel: 12 terminal locations 4735 | -8/Materials | Build established: Mutant 4886 | -8/Materials | Discovered new exit (range 16) 5115 | -8/Materials | Discovered new exit (range 12) 5146 | -8/Materials | Learned location of Extension (-5) 5267 | -8/Materials | Learned location of 1 exit from Extension 5347 | -8/Materials | Identified exit to Factory 5382 | -8/Materials | Learned location of 2 exits from Lower Caves 5404 | -8/Materials | Learned location of 1 exit from Lower Caves 5481 | -8/Materials | Learned 2 Storage zone layouts 5491 | -8/Materials | Lost 4 parts (3n1w) 5603 | -8/Materials | Entered Storage 5979 | -8/Storage | Destroyed 7 combat bots 6032 | -8/Storage | Assisted by bots powering up and referring to "LRC-V3" 6160 | -8/Storage | Met 01-MTF 6326 | -8/Storage | Build established: Commander-Mutant 6376 | -8/Storage | Garrison activated, responded to threat 6388 | -8/Storage | Destroyed 01-MTF 6390 | -8/Storage | Core integrity fell below 50% 6418 | -8/Storage | Lost 6 allies 6684 | -8/Storage | Murdered 3 allies 6959 | -8/Storage | Build established: Mutant 6968 | -8/Storage | Learned location of 1 exit from Lower Caves 7033 | -8/Storage | Learned 4 Factory zone layouts 7088 | -8/Storage | Used back door to open Recycling access 7088 | -8/Storage | Discovered new exit (range 3) 7090 | -8/Storage | Learned location of 1 exit from Storage 7139 | -8/Storage | Learned Factory trap positions 7246 | -8/Storage | Learned location of Lower Caves (-7) 7294 | -8/Storage | Learned location of 1 exit from Lower Caves 7351 | -8/Storage | Learned Factory stockpile data 7376 | -8/Storage | Entered Recycling 7377 | -8/Recycling | Identified exit to Scraptown 7433 | -8/Recycling | Scanned before Scraplab entrance 7588 | -8/Recycling | Discovered new exit (range 10) 7970 | -8/Recycling | Build established: Commander-Mutant 8404 | -8/Recycling | Learned location of Storage (-8) 8510 | -8/Recycling | Learned 2 Storage zone layouts 8631 | -8/Recycling | Learned location of 1 exit from Lower Caves 8684 | -8/Recycling | Entered Scraplab 8720 | -8/Recycling | Entered Scraptown 8720 | -8/Scraptown | Accompanied by 11 allies 8720 | -8/Scraptown | System corruption cleaned by C-Scrubber 8985 | -8/Scraptown | Visited SPCMW 9005 | -8/Scraptown | Visited CPS Storage 9046 | -8/Scraptown | Visited Cyclists 9057 | -8/Scraptown | Visited Spacefarers 9076 | -8/Scraptown | Visited Assassins FH 9097 | -8/Scraptown | Visited Fellowship of the Rings 9140 | -8/Scraptown | Visited UFD Registry 9140 | -8/Scraptown | Registered with UFD as "Microtank" 9223 | -8/Scraptown | Discovered new exit (range 13) 9502 | -8/Scraptown | Visited Scrap Suit Storage 9521 | -8/Scraptown | Visited Chapter 10 9556 | -8/Scraptown | Visited Curators Association 9661 | -8/Scraptown | Visited Supply Room 9678 | -8/Scraptown | Visited A0-MCA Data Center 9686 | -8/Scraptown | Given a B- rating by A0-MCA 9691 | -8/Scraptown | Found A0-MCA's Component Scanner 9709 | -8/Scraptown | Visited Observation Area 9730 | -8/Scraptown | Visited Botcube Research 9753 | -8/Scraptown | Visited Scrapoid Research Area 9775 | -8/Scraptown | Visited Science Guys 9890 | -8/Scraptown | Met Optimus 9890 | -8/Scraptown | Accepted into 0bPrime 9963 | -8/Scraptown | Discovered new exit (range 3) 10004 | -8/Scraptown | Entered Factory 10004 | -6/Factory | Accompanied by 11 allies 10004 | -6/Factory | Evolved 4 slots: Power x1, Propulsion x1, Utility x2 10005 | -6/Factory | Identified exit to Lower Caves 10007 | -6/Factory | Loaded intel: 102 trap records 10314 | -6/Factory | Lost 3 allies 10490 | -6/Factory | P-60 Hacker assimilated allied Rogue 3a 10540 | -6/Factory | Lost 5 allies 10783 | -6/Factory | Build established: Mutant 10966 | -6/Factory | Spotted B-75 Beast 11180 | -6/Factory | Lost 3 parts (2p1w) 11351 | -6/Factory | Loaded intel: 8 recycling unit locations 11404 | -6/Factory | First assault squad dispatched 11451 | -6/Factory | Lost 5 parts (2p3n) 11557 | -6/Factory | Released all parts (6) 11563 | -6/Factory | Lost 5 parts (1p1n2u1w) 11697 | -6/Factory | Core integrity fell below 50% 11725 | -6/Factory | Sucked down chute 11725 | -6/Factory | Entered Waste 11731 | -6/Waste | Spotted C-40 Crusher 11737 | -6/Waste | Spotted C-40 Crusher 11739 | -6/Waste | Spotted C-40 Crusher 11740 | -6/Waste | EMP discharged 11740 | -6/Waste | System corruption reached 10% 11742 | -6/Waste | Spotted C-40 Crusher 11782 | -6/Waste | Spotted C-40 Crusher 11787 | -6/Waste | Spotted C-40 Crusher 11840 | -6/Waste | EMP discharged 11855 | -6/Waste | Discovered new exit (range 11) 11879 | -6/Waste | Entered Factory 12374 | -6/Factory | Core integrity fell below 20% 12400 | -6/Factory | Lost 3 parts (2n1u) 12461 | -6/Factory | Build established: Scavenger-Mutant 12522 | -6/Factory | Released all parts (11) 12529 | -6/Factory | Core destroyed Last Messages --------------- 12520_ OJTJ7C2E#S8B3VDOZWJKCM 12520_ K-01 Serf collects debris. 12522_ Released Carbon-fiber Leg+. 12522_ Released Focal Shield. 12522_ Released Hpw. Tractor Beam. 12522_ Released Med. Storage Unit. 12522_ Released Com. Wheel. 12522_ Released Imp. Ion Engine. 12522_ Released Adv. Heat Sink. 12522_ Released Cld. Plasma Cannon. 12522_ Released Imp. Ion Engine. 12522_ Released Carbon-fiber Leg+. 12524_ K-01 Serf cleans the Fabricator. 12526_ Slammed into Wall. 12526_ Destabilizing: Core damaged (-8). 12526_ Destabilizing: Core damaged (-17). 12527_ Slammed into Wall. 12528_ K-01 Serf collects debris. 12529_ Slammed into Wall. 12529_ Destabilizing: Core damaged (-8). Map ----- +----------------------------------------------------+ | ??????????##???????# #????? | | ???????????????????# #????? | | ???????????????????# #????? | | ??????????????????## #????? | | ??????????????#####"+#/## #????? | | ???????????#! # #????? | | ???????????# """ """ # #????? | | ??????????????? """ """ # #????? | | ???????????# """ """ # #????? | | ???????????# # #????? | | ???????????# """ """ # #????? | | ????????????????""" """ # #????? | | ???????????# """ """=+% #???## | | ???????????# # #?? | | ???????????# ! # #?? | | ???????????# !# #? | | ???????????# # # """ | | ???????????##+########### |# """ | | ????????????# #??# !%! """ | | ????????????# #??# !+ | | ????????????# #??# # """ | | ????????????# #??# #? """ | | ????????????# #??# #??""" | | ????????????# #### ########??? | | ??????????### #;;; #?????????? | | ??????????#@ #???????????# | | ??????????# ##??????????? | | ??????????+ = ;#??????????? | | ??????????# *!] ;##?????????? | | ????? " " *!== ; #?????????? | | ??? !!= ; #?????????? | | ?? * / ; #?????????? | | ??? ;##?????????? | | ??#######" ; #?????????? | | ??????? ; ;##?????????? | | ????? ; "#??????????? | | ????? ; ##??????????? | | ????? "" ; #???????????? | | ???????" # k #???????????? | | ???????"" # #???????????? | | ????????" # "F"" #???????????? | | ??????????+ """" #???????????? | | ??????????? ???? #???????????? | | ?????????????? ????? ????????????? | | ???????????????????????????????????? | | ???????????????????????????????????? | | ???????????????????????????????????? | | ???????????????????????????????????? | | ???????????????????????????????????? | | ???????????????????????????????????? | +----------------------------------------------------+ Best States ------------- Heat Dissipation 56 Energy Generation 29 Energy Capacity 455 Matter Stores 300 Matter Capacity 300 Sight Range 16 Terrain Scan Density 10 Power Amplification 20 Additional Mass Support 12 Armor Coverage 450 Resistance: KI 20 Core Shielding 20 Evasion (%) 55 Targeting Accuracy 6 Core Analysis 6 Recoil Reduction 2 Salvage Targeting 1 Item Schematics ----------------- Hcp. Storage Unit | -8/Storage | Hacked Cryofiber Web | -8/Storage | Hacked Robot Schematics ------------------ None Fabricated ------------ Nothing Repaired ---------- Nothing Studied --------- Rocket Launcher | -8/Materials | Hacked Carbon-fiber Leg | -8/Materials | Hacked Alien Tech Used ----------------- None Achievements -------------- None Challenges ------------ None Game ------ Seed XenonModifiedLaser Manual? 0 Play Time 01:07:45 Cumulative 508.6 hours Start 2025.11.04 @ 21:39:45 End 2025.11.04 @ 22:58:46 Sessions 1 Manual Loads 0 Difficulty Rogue Special Mode None Game No. 275 Rogue 275 Adventurer 0 Explorer 0 Win Type - Total 22 Types 13/1/5/1/0/0/0/1/1/0 Lore% 94 Gallery% 88 Achievement% 79 Wizard Run 0 Options --------- Layout 2 ASCII 0 Keyboard 1 Movement Vi Keybinds 0 Fullscreen 1 Font 28/Terminus Map View 50x52 Zoom Use 0% Tactical HUD 1 Map Filters NONE Filters NONE Steam 1 RUN: 000537cc-1af3-4071-b28a-ebf1519abea3